fUST/lending_fUST_20250401
["ID","MTS","AMOUNT","RATE_DAILY","PERIOD"]
[356970867,1743511843342,-500.0,0.00017534,2]
[356970868,1743511843351,-500.0,0.00017534,2]
[356970869,1743511843361,-500.0,0.00017534,2]
[356970870,1743511843370,-6013.25,0.00017534,2]
[356970871,1743511843379,-500.0,0.00017534,2]
[356970872,1743511843389,-698.88,0.00017534,2]
[356970873,1743511843398,-926.1,0.00017534,2]
[356970874,1743511843408,-2627.75,0.00017534,2]
[356970875,1743511843417,-2688.77,0.00017534,2]
[356970877,1743511843427,-1319.31,0.00017534,2]
[356970879,1743511843435,-2867.87,0.00017534,2]
[356970881,1743511843445,-3629.52,0.00017534,2]
[356970883,1743511843454,-907.13,0.00017534,2]
[356970885,1743511843463,-770.9,0.00017534,2]
[356970887,1743511843472,-584.69,0.00017534,2]
[356970889,1743511843481,-543.74,0.00017534,2]
[356970891,1743511843491,-1161.33,0.00017534,2]
[356970893,1743511843500,-1377.78,0.00017534,2]
[356970895,1743511843509,-814.41,0.00017534,2]
[356970897,1743511843518,-2088.0,0.00017534,2]
[356970899,1743511843529,-539.2,0.00017534,2]
[356970901,1743511843538,-820.58,0.00017534,2]
[356970903,1743511843548,-500.0,0.00017534,2]
[356970905,1743511843557,-500.0,0.00017534,2]
[356970907,1743511843566,-500.0,0.00017534,2]
[356970909,1743511843575,-5678.07,0.00017534,2]
[356970911,1743511843584,-500.0,0.00017534,2]
[356970913,1743511843593,-500.0,0.00017534,2]
[356970915,1743511843602,-500.0,0.00017534,2]
[356970917,1743511843611,-500.0,0.00017534,2]
[356970919,1743511843621,-1230.57,0.00017534,2]
[356970921,1743511843630,-932.68,0.00017534,2]
[356970923,1743511843638,-500.0,0.00017534,2]
[356970925,1743511843647,-500.0,0.00017534,2]
[356970927,1743511843657,-500.0,0.00017534,2]
[356970929,1743511843666,-968.43,0.00017534,2]
[356970931,1743511843675,-590.49,0.00017534,2]
[356970933,1743511843683,-500.0,0.00017534,2]
[356970934,1743511843690,-1446.65,0.00017534,2]
[356970936,1743511843698,-500.0,0.00017534,2]
[356970938,1743511843705,-500.0,0.00017534,2]
[356970941,1743511843714,-3087.28,0.00017534,2]
[356970942,1743511843721,-1474.18,0.00017534,2]
[356970945,1743511843730,-1315.11,0.00017534,2]
[356970946,1743511843737,-500.0,0.00017534,2]
[356970949,1743511843745,-2138.38,0.00017534,2]
[356970951,1743511843753,-318.32511111,0.00017626,2]
[356970953,1743511843761,-516.68433653,0.00017657,2]
[356970955,1743511843769,-500.0,0.00017657,2]
[356970957,1743511843779,-500.0,0.00017657,2]
[356970959,1743511843788,-500.0,0.00017688,2]
[356970961,1743511843795,-500.0,0.00017688,2]
[356970963,1743511843802,-500.0,0.00017688,2]
[356970964,1743511843811,-500.0,0.00017688,2]
[356970967,1743511843820,-500.0,0.00017688,2]
[356970969,1743511843830,-500.0,0.00017688,2]
[356970971,1743511843840,-500.0,0.00017688,2]
[356970973,1743511843850,-500.0,0.00017688,2]
[356970975,1743511843859,-500.0,0.00017688,2]
[356970976,1743511843868,-500.0,0.00017688,2]
[356970978,1743511843878,-264.65067899,0.00017688,2]
[356970980,1743511843887,-500.0,0.00017688,2]
[356970982,1743511843896,-500.0,0.00017688,2]
[356970984,1743511843906,-501.03450933,0.00017688,2]
[356970986,1743511843916,-500.0,0.00017688,2]
[356970988,1743511843928,-500.0,0.00017723,2]
[356970990,1743511843937,-500.0,0.00017723,2]
[356970992,1743511843946,-500.0,0.00017739,2]
[356970994,1743511843956,-500.0,0.0001775,2]
[356970996,1743511843966,-500.0,0.0001775,2]
[356970998,1743511843976,-500.0,0.0001775,2]
[356971000,1743511843985,-501.36699581,0.0001775,2]
[356971015,1743511843995,-500.0,0.00017777,2]
[356971017,1743511844133,-281.37653677,0.00017784,2]
[356971019,1743511844143,-500.0,0.000178,2]
[356971021,1743511844154,-405.47349359,0.000178,2]
[356971023,1743511844163,-500.0,0.000178,2]
[356971025,1743511844174,-500.0,0.000178,2]
[356971027,1743511844183,-500.0,0.00017808,2]
[356971029,1743511844193,-500.0,0.00017808,2]
[356971031,1743511844203,-500.0,0.00017808,2]
[356971033,1743511844213,-500.0,0.00017808,2]
[356971035,1743511844223,-500.0,0.00017808,2]
[356971037,1743511844233,-500.0,0.00017808,2]
[356971039,1743511844242,-500.0,0.00017808,2]
[356971041,1743511844252,-500.0,0.00017808,2]
[356971043,1743511844262,-500.0,0.00017808,2]
[356971045,1743511844272,-500.0,0.00017808,2]
[356971047,1743511844283,-500.0,0.00017808,2]
[356971049,1743511844293,-500.0,0.00017808,2]
[356971051,1743511844302,-500.0,0.00017808,2]
[356971053,1743511844312,-500.0,0.00017808,2]
[356971055,1743511844322,-500.0,0.00017808,2]
[356971057,1743511844331,-500.0,0.00017808,2]
[356971059,1743511844341,-500.0,0.00017808,2]
[356971061,1743511844350,-500.0,0.00017808,2]
[356971063,1743511844360,-500.0,0.00017808,2]
[356971065,1743511844369,-500.0,0.00017808,2]
[356971067,1743511844378,-500.0,0.00017808,2]
[356971069,1743511844388,-500.0,0.00017808,2]
[356971071,1743511844399,-500.0,0.00017808,2]
[356971073,1743511844409,-500.0,0.00017808,2]
[356971075,1743511844418,-559.76,0.00017808,2]
[356971078,1743511844430,-500.0,0.00017808,2]
[356971079,1743511844439,-500.0,0.00017808,2]
[356971081,1743511844448,-812.55,0.00017808,2]
[356971083,1743511844457,-500.0,0.00017808,2]
[356971085,1743511844467,-785.36,0.00017808,2]
[356971087,1743511844477,-500.0,0.00017808,2]
[356971089,1743511844487,-500.0,0.00017808,2]
[356971090,1743511844497,-500.0,0.00017808,2]
[356971092,1743511844506,-500.0,0.00017808,2]
[356971094,1743511844516,-791.06,0.00017808,2]
[356971096,1743511844525,-500.0,0.00017808,2]
[356971098,1743511844535,-500.0,0.00017808,2]
[356971100,1743511844544,-500.0,0.00017808,2]
[356971102,1743511844553,-500.0,0.00017808,2]
[356971104,1743511844563,-500.0,0.00017808,2]
[356971106,1743511844572,-500.0,0.00017808,2]
[356971108,1743511844581,-500.0,0.00017808,2]
[356971110,1743511844590,-412.65125799,0.00017808,2]
[356971112,1743511844599,-500.0,0.00017808,2]
[356971114,1743511844609,-500.0,0.00017808,2]
[356971116,1743511844618,-500.0,0.00017808,2]
[356971118,1743511844627,-500.0,0.00017808,2]
[356971120,1743511844636,-1670.24,0.00017808,2]
[356971122,1743511844646,-500.0,0.00017808,2]
[356971124,1743511844655,-500.0,0.00017808,2]
[356971126,1743511844664,-500.0,0.00017808,2]
[356971128,1743511844674,-500.0,0.00017808,2]
[356971130,1743511844683,-500.0,0.00017808,2]
[356971132,1743511844692,-500.0,0.00017808,2]
[356971134,1743511844701,-707.22,0.00017808,2]
[356971136,1743511844710,-500.0,0.00017808,2]
[356971138,1743511844719,-500.0,0.00017808,2]
[356971140,1743511844729,-500.0,0.00017808,2]
[356971142,1743511844738,-500.0,0.00017808,2]
[356971144,1743511844747,-901.5,0.00017808,2]
[356971146,1743511844757,-500.0,0.00017808,2]
[356971148,1743511844766,-500.0,0.00017808,2]
[356971150,1743511844776,-500.0,0.00017808,2]
[356971152,1743511844786,-864.64,0.00017808,2]
[356971154,1743511844795,-619.0,0.00017808,2]
[356971156,1743511844804,-896.88,0.00017808,2]
[356971158,1743511844813,-500.0,0.00017808,2]
[356971160,1743511844823,-500.0,0.00017808,2]
[356971162,1743511844832,-1772.12,0.00017808,2]
[356971164,1743511844842,-500.0,0.00017808,2]
[356971166,1743511844851,-596.7,0.00017808,2]
[356971168,1743511844861,-500.0,0.00017808,2]
[356971170,1743511844870,-500.0,0.00017808,2]
[356971172,1743511844880,-500.0,0.00017808,2]
[356971174,1743511844889,-500.0,0.00017808,2]
[356971176,1743511844899,-500.0,0.00017808,2]
[356971178,1743511844908,-3356.11,0.00017808,2]
[356971180,1743511844918,-173.14500022,0.00017808,2]
[356971182,1743511844927,-582.50130018,0.00017808,2]
[356971184,1743511844936,-540.11,0.00017808,2]
[356971186,1743511844945,-640.2,0.00017808,2]
[356971187,1743511844955,-564.61,0.00017808,2]
[356971188,1743511844965,-1033.56,0.00017808,2]
[356971189,1743511844975,-254.72892665,0.00017808,2]
[356971190,1743511844984,-500.0,0.00017808,2]
[356971191,1743511844993,-532.66,0.00017808,2]
[356971192,1743511845003,-2934.38,0.00017808,2]
[356971193,1743511845012,-987.59,0.00017808,2]
[356971194,1743511845022,-500.0,0.00017808,2]
[356971195,1743511845032,-500.0,0.00017808,2]
[356971196,1743511845041,-599.43,0.00017808,2]
[356971197,1743511845051,-4154.16,0.00017808,2]
[356971198,1743511845061,-500.0,0.00017808,2]
[356971199,1743511845070,-500.0,0.00017808,2]
[356971200,1743511845080,-500.0,0.00017808,2]
[356971201,1743511845089,-500.0,0.00017808,2]
[356971202,1743511845099,-686.03,0.00017808,2]
[356971203,1743511845109,-549.89,0.00017808,2]
[356971204,1743511845121,-500.0,0.00017808,2]
[356971205,1743511845131,-635.45,0.00017808,2]
[356971206,1743511845140,-570.44378686,0.00017808,2]
[356971207,1743511845150,-500.0,0.00017808,2]
[356971208,1743511845161,-500.0,0.00017808,2]
[356971209,1743511845171,-618.27,0.00017808,2]
[356971210,1743511845181,-500.0,0.00017808,2]
[356971211,1743511845190,-500.0,0.00017808,2]
[356971212,1743511845202,-500.0,0.00017808,2]
[356971213,1743511845212,-500.0,0.00017808,2]
[356971215,1743511845221,-500.0,0.00017808,2]
[356971216,1743511845231,-500.0,0.00017808,2]
[356971217,1743511845241,-500.0,0.00017808,2]
[356971218,1743511845250,-500.0,0.00017808,2]
[356971219,1743511845259,-618.55,0.00017808,2]
[356971220,1743511845269,-500.0,0.00017808,2]
[356971221,1743511845279,-500.0,0.00017808,2]
[356971222,1743511845288,-500.0,0.00017808,2]
[356971223,1743511845298,-3733.39,0.00017808,2]
[356971225,1743511845307,-500.0,0.00017808,2]
[356971227,1743511845317,-500.0,0.00017808,2]
[356971229,1743511845327,-500.0,0.00017808,2]
[356971231,1743511845336,-589.15,0.00017808,2]
[356971232,1743511845346,-500.0,0.00017808,2]
[356971233,1743511845356,-552.2,0.00017808,2]
[356971234,1743511845365,-2903.61,0.00017808,2]
[356971235,1743511845375,-500.0,0.00017808,2]
[356971236,1743511845385,-500.0,0.00017808,2]
[356971237,1743511845396,-500.0,0.00017808,2]
[356971238,1743511845407,-500.0,0.00017808,2]
[356971239,1743511845417,-4746.78,0.00017808,2]
[356971241,1743511845427,-500.0,0.00017808,2]
[356971243,1743511845436,-500.0,0.00017808,2]
[356971244,1743511845445,-500.0,0.00017808,2]
[356971245,1743511845455,-500.0,0.00017808,2]
[356971246,1743511845464,-1427.21,0.00017808,2]
[356971247,1743511845474,-1831.33,0.00017808,2]
[356971249,1743511845483,-829.33,0.00017808,2]
[356971251,1743511845492,-500.0,0.00017808,2]
[356971252,1743511845502,-500.0,0.00017808,2]
[356971253,1743511845512,-901.12,0.00017808,2]
[356971254,1743511845521,-10198.4,0.00017808,2]
[356971255,1743511845532,-1956.22,0.00017808,2]
[356971257,1743511845542,-151.0,0.00017808,2]
[356971259,1743511845551,-500.0,0.00017808,2]
[356971261,1743511845561,-539.81,0.00017808,2]
[356971262,1743511845570,-607.67,0.00017808,2]
[356971263,1743511845580,-4310.96,0.00017808,2]
[356971264,1743511845590,-200.0,0.00017808,2]
[356971265,1743511845599,-2071.97,0.00017808,2]
[356971266,1743511845609,-500.0,0.00017808,2]
[356971267,1743511845619,-898.84,0.00017808,2]
[356971268,1743511845629,-500.0,0.00017808,2]
[356971269,1743511845638,-500.0,0.00017808,2]
[356971270,1743511845647,-500.0,0.00017808,2]
[356971271,1743511845656,-1742.34,0.00017808,2]
[356971272,1743511845666,-326.09654385,0.00017808,2]
[356971273,1743511845675,-594.35,0.00017808,2]
[356971274,1743511845685,-500.0,0.00017808,2]
[356971275,1743511845695,-505.77,0.00017808,2]
[356971277,1743511845704,-11519.68,0.00017808,2]
[356971279,1743511845714,-3396.4,0.00017808,2]
[356971280,1743511845723,-500.0,0.00017808,2]
[356971281,1743511845733,-588.38,0.00017808,2]
[356971282,1743511845743,-597.82,0.00017808,2]
[356971283,1743511845755,-500.0,0.00017808,2]
[356971284,1743511845765,-500.0,0.00017808,2]
[356971285,1743511845775,-500.0,0.00017808,2]
[356971286,1743511845785,-6013.25,0.00017808,2]
[356971287,1743511845795,-500.0,0.00017808,2]
[356971288,1743511845805,-698.88,0.00017808,2]
[356971289,1743511845815,-926.1,0.00017808,2]
[356971290,1743511845825,-2627.75,0.00017808,2]
[356971291,1743511845835,-2688.77,0.00017808,2]
[356971292,1743511845844,-1319.31,0.00017808,2]
[356971293,1743511845853,-2867.87,0.00017808,2]
[356971294,1743511845864,-3629.52,0.00017808,2]
[356971295,1743511845873,-907.13,0.00017808,2]
[356971296,1743511845883,-770.9,0.00017808,2]
[356971297,1743511845893,-584.69,0.00017808,2]
[356971298,1743511845902,-543.74,0.00017808,2]
[356971299,1743511845912,-1161.33,0.00017808,2]
[356971300,1743511845921,-1377.78,0.00017808,2]
[356971301,1743511845931,-814.41,0.00017808,2]
[356971302,1743511845940,-2088.0,0.00017808,2]
[356971303,1743511845951,-539.2,0.00017808,2]
[356971304,1743511845960,-820.58,0.00017808,2]
[356971305,1743511845969,-500.0,0.00017808,2]
[356971306,1743511845978,-500.0,0.00017808,2]
[356971307,1743511845988,-500.0,0.00017808,2]
[356971308,1743511845998,-5678.07,0.00017808,2]
[356971309,1743511846007,-500.0,0.00017808,2]
[356971310,1743511846017,-500.0,0.00017808,2]
[356971311,1743511846026,-500.0,0.00017808,2]
[356971312,1743511846036,-500.0,0.00017808,2]
[356971313,1743511846046,-1230.57,0.00017808,2]
[356971314,1743511846055,-932.68,0.00017808,2]
[356971315,1743511846065,-500.0,0.00017808,2]
[356971316,1743511846075,-607.07424226,0.00017808,2]
[356971317,1743511846085,-500.0,0.00017808,2]
[356971318,1743511846095,-968.43,0.00017808,2]
[356971319,1743511846105,-590.49,0.00017808,2]
[356971320,1743511846117,-500.0,0.00017808,2]
[356971321,1743511846129,-1446.65,0.00017808,2]
[356971322,1743511846137,-549.70219773,0.00017808,2]
[356971323,1743511846146,-500.0,0.00017808,2]
[356971324,1743511846156,-3087.28,0.00017808,2]
[356971325,1743511846166,-1474.18,0.00017808,2]
[356971326,1743511846176,-1315.11,0.00017808,2]
[356971327,1743511846186,-367.78717912,0.00017808,2]
[356971328,1743511846196,-151.42,0.0001801,2]
[356971329,1743511846206,-544.336,0.0001801,2]
[356971330,1743511846216,-2262.0,0.0001801,2]
[356971331,1743511846226,-1916.0,0.0001801,2]
[356971332,1743511846236,-500.0,0.00018082,2]
[356971333,1743511846247,-500.0,0.00018082,2]
[356971334,1743511846256,-500.0,0.00018082,2]
[356971335,1743511846266,-500.0,0.00018082,2]
[356971336,1743511846275,-554.60767158,0.00018082,2]
[356971337,1743511846287,-500.0,0.00018082,2]
[356971338,1743511846296,-500.0,0.00018082,2]
[356971339,1743511846306,-500.0,0.00018082,2]
[356971340,1743511846316,-500.0,0.00018082,2]
[356971341,1743511846326,-500.0,0.00018082,2]
[356971342,1743511846335,-500.0,0.00018082,2]
[356971343,1743511846345,-500.0,0.00018082,2]
[356971344,1743511846355,-500.0,0.00018082,2]
[356971345,1743511846364,-500.0,0.00018082,2]
[356971346,1743511846374,-500.0,0.00018082,2]
[356971347,1743511846383,-500.0,0.00018082,2]
[356971348,1743511846393,-500.0,0.00018082,2]
[356971349,1743511846403,-500.0,0.00018082,2]
[356971350,1743511846412,-500.0,0.00018082,2]
[356971351,1743511846422,-500.0,0.00018082,2]
[356971352,1743511846431,-500.0,0.00018082,2]
[356971353,1743511846441,-500.0,0.00018082,2]
[356971354,1743511846450,-500.0,0.00018082,2]
[356971355,1743511846460,-500.0,0.00018082,2]
[356971356,1743511846471,-559.76,0.00018082,2]
[356971357,1743511846481,-500.0,0.00018082,2]
[356971358,1743511846491,-500.0,0.00018082,2]
[356971359,1743511846502,-812.55,0.00018082,2]
[356971360,1743511846511,-500.0,0.00018082,2]
[356971361,1743511846521,-785.36,0.00018082,2]
[356971362,1743511846532,-500.0,0.00018082,2]
[356971363,1743511846541,-500.0,0.00018082,2]
[356971364,1743511846551,-500.0,0.00018082,2]
[356971365,1743511846560,-500.0,0.00018082,2]
[356971366,1743511846570,-791.06,0.00018082,2]
[356971367,1743511846579,-500.0,0.00018082,2]
[356971368,1743511846591,-500.0,0.00018082,2]
[356971369,1743511846601,-500.0,0.00018082,2]
[356971370,1743511846610,-197.783193,0.00018082,2]
[356971371,1743511846620,-500.0,0.00018082,2]
[356971372,1743511846629,-500.0,0.00018082,2]
[356971373,1743511846638,-500.0,0.00018082,2]
[356971374,1743511846648,-500.0,0.00018082,2]
[356971375,1743511846658,-500.0,0.00018082,2]
[356971376,1743511846667,-500.0,0.00018082,2]
[356971377,1743511846677,-500.0,0.00018082,2]
[356971378,1743511846687,-500.0,0.00018082,2]
[356971379,1743511846696,-1670.24,0.00018082,2]
[356971380,1743511846705,-500.0,0.00018082,2]
[356971381,1743511846715,-500.0,0.00018082,2]
[356971382,1743511846725,-500.0,0.00018082,2]
[356971383,1743511846735,-500.0,0.00018082,2]
[356971384,1743511846745,-500.0,0.00018082,2]
[356971385,1743511846755,-500.0,0.00018082,2]
[356971386,1743511846764,-707.22,0.00018082,2]
[356971387,1743511846774,-500.0,0.00018082,2]
[356971388,1743511846784,-500.0,0.00018082,2]
[356971389,1743511846794,-500.0,0.00018082,2]
[356971390,1743511846803,-500.0,0.00018082,2]
[356971391,1743511846813,-500.0,0.00018082,2]
[356971392,1743511846822,-901.5,0.00018082,2]
[356971393,1743511846831,-500.0,0.00018082,2]
[356971394,1743511846840,-500.0,0.00018082,2]
[356971395,1743511846850,-864.64,0.00018082,2]
[356971396,1743511846859,-619.0,0.00018082,2]
[356971397,1743511846869,-896.88,0.00018082,2]
[356971398,1743511846879,-500.0,0.00018082,2]
[356971399,1743511846890,-500.0,0.00018082,2]
[356971400,1743511846900,-1772.12,0.00018082,2]
[356971401,1743511846910,-500.0,0.00018082,2]
[356971402,1743511846919,-596.7,0.00018082,2]
[356971403,1743511847050,-500.0,0.00018082,2]
[356971404,1743511847061,-500.0,0.00018082,2]
[356971405,1743511847071,-500.0,0.00018082,2]
[356971406,1743511847081,-500.0,0.00018082,2]
[356971407,1743511847091,-500.0,0.00018082,2]
[356971408,1743511847101,-3356.11,0.00018082,2]
[356971409,1743511847112,-540.11,0.00018082,2]
[356971410,1743511847124,-640.2,0.00018082,2]
[356971411,1743511847134,-564.61,0.00018082,2]
[356971412,1743511847143,-1033.56,0.00018082,2]
[356971413,1743511847153,-500.0,0.00018082,2]
[356971414,1743511847163,-532.66,0.00018082,2]
[356971415,1743511847172,-2934.38,0.00018082,2]
[356971416,1743511847182,-987.59,0.00018082,2]
[356971417,1743511847191,-500.0,0.00018082,2]
[356971418,1743511847201,-500.0,0.00018082,2]
[356971419,1743511847211,-599.43,0.00018082,2]
[356971420,1743511847221,-4154.16,0.00018082,2]
[356971421,1743511847230,-500.0,0.00018082,2]
[356971422,1743511847240,-500.0,0.00018082,2]
[356971423,1743511847250,-500.0,0.00018082,2]
[356971424,1743511847260,-500.0,0.00018082,2]
[356971425,1743511847269,-686.03,0.00018082,2]
[356971426,1743511847279,-549.89,0.00018082,2]
[356971427,1743511847289,-500.0,0.00018082,2]
[356971428,1743511847299,-635.45,0.00018082,2]
[356971429,1743511847308,-500.0,0.00018082,2]
[356971430,1743511847318,-500.0,0.00018082,2]
[356971431,1743511847329,-618.27,0.00018082,2]
[356971432,1743511847338,-500.0,0.00018082,2]
[356971433,1743511847349,-500.0,0.00018082,2]
[356971434,1743511847358,-500.0,0.00018082,2]
[356971435,1743511847368,-500.0,0.00018082,2]
[356971436,1743511847378,-500.0,0.00018082,2]
[356971437,1743511847388,-500.0,0.00018082,2]
[356971438,1743511847405,-500.0,0.00018082,2]
[356971439,1743511847421,-500.0,0.00018082,2]
[356971440,1743511847432,-618.55,0.00018082,2]
[356971441,1743511847444,-500.0,0.00018082,2]
[356971442,1743511847455,-500.0,0.00018082,2]
[356971443,1743511847466,-500.0,0.00018082,2]
[356971444,1743511847476,-3733.39,0.00018082,2]
[356971445,1743511847487,-500.0,0.00018082,2]
[356971446,1743511847498,-500.0,0.00018082,2]
[356971447,1743511847509,-500.0,0.00018082,2]
[356971448,1743511847519,-589.15,0.00018082,2]
[356971449,1743511847530,-500.0,0.00018082,2]
[356971450,1743511847541,-552.2,0.00018082,2]
[356971451,1743511847552,-2903.61,0.00018082,2]
[356971452,1743511847563,-500.0,0.00018082,2]
[356971453,1743511847575,-500.0,0.00018082,2]
[356971454,1743511847585,-500.0,0.00018082,2]
[356971455,1743511847597,-461.24209089,0.00018082,2]
[356971456,1743511847608,-4746.78,0.00018082,2]
[356971457,1743511847618,-500.0,0.00018082,2]
[356971458,1743511847628,-500.0,0.00018082,2]
[356971459,1743511847639,-500.0,0.00018082,2]
[356971460,1743511847649,-500.0,0.00018082,2]
[356971461,1743511847660,-1427.21,0.00018082,2]
[356971462,1743511847670,-1831.33,0.00018082,2]
[356971463,1743511847681,-829.33,0.00018082,2]
[356971464,1743511847692,-500.0,0.00018082,2]
[356971465,1743511847702,-500.0,0.00018082,2]
[356971466,1743511847713,-901.12,0.00018082,2]
[356971467,1743511847724,-10198.4,0.00018082,2]
[356971468,1743511847735,-1956.22,0.00018082,2]
[356971469,1743511847745,-500.0,0.00018082,2]
[356971470,1743511847755,-539.81,0.00018082,2]
[356971471,1743511847766,-607.67,0.00018082,2]
[356971472,1743511847776,-4310.96,0.00018082,2]
[356971473,1743511847788,-200.0,0.00018082,2]
[356971474,1743511847798,-2071.97,0.00018082,2]
[356971475,1743511847809,-500.0,0.00018082,2]
[356971476,1743511847819,-898.84,0.00018082,2]
[356971477,1743511847829,-500.0,0.00018082,2]
[356971478,1743511847839,-500.0,0.00018082,2]
[356971479,1743511847850,-500.0,0.00018082,2]
[356971480,1743511847860,-1742.34,0.00018082,2]
[356971481,1743511847871,-500.0,0.00018082,2]
[356971482,1743511847881,-594.35,0.00018082,2]
[356971483,1743511847892,-505.77,0.00018082,2]
[356971484,1743511847903,-11519.68,0.00018082,2]
[356971485,1743511847913,-3396.4,0.00018082,2]
[356971486,1743511847924,-500.0,0.00018082,2]
[356971487,1743511847934,-588.38,0.00018082,2]
[356971488,1743511847944,-597.82,0.00018082,2]
[356971489,1743511847954,-500.0,0.00018082,2]
[356971490,1743511847964,-500.0,0.00018082,2]
[356971491,1743511847974,-500.0,0.00018082,2]
[356971492,1743511847984,-6013.25,0.00018082,2]
[356971493,1743511847995,-500.0,0.00018082,2]
[356971494,1743511848006,-698.88,0.00018082,2]
[356971495,1743511848016,-926.1,0.00018082,2]
[356971496,1743511848027,-2627.75,0.00018082,2]
[356971497,1743511848044,-2688.77,0.00018082,2]
[356971498,1743511848054,-1319.31,0.00018082,2]
[356971499,1743511848065,-2867.87,0.00018082,2]
[356971500,1743511848076,-3629.52,0.00018082,2]
[356971501,1743511848087,-907.13,0.00018082,2]
[356971502,1743511848100,-770.9,0.00018082,2]
[356971503,1743511848112,-584.69,0.00018082,2]
[356971504,1743511848129,-543.74,0.00018082,2]
[356971505,1743511848141,-1161.33,0.00018082,2]
[356971506,1743511848154,-1377.78,0.00018082,2]
[356971507,1743511848165,-814.41,0.00018082,2]
[356971508,1743511848177,-2088.0,0.00018082,2]
[356971509,1743511848188,-539.2,0.00018082,2]
[356971510,1743511848201,-820.58,0.00018082,2]
[356971511,1743511848213,-500.0,0.00018082,2]
[356971512,1743511848223,-500.0,0.00018082,2]
[356971513,1743511848235,-500.0,0.00018082,2]
[356971514,1743511848245,-5678.07,0.00018082,2]
[356971515,1743511848255,-500.0,0.00018082,2]
[356971516,1743511848266,-500.0,0.00018082,2]
[356971517,1743511848276,-500.0,0.00018082,2]
[356971518,1743511848286,-500.0,0.00018082,2]
[356971519,1743511848296,-1230.57,0.00018082,2]
[356971520,1743511848306,-932.68,0.00018082,2]
[356971521,1743511848317,-500.0,0.00018082,2]
[356971522,1743511848327,-500.0,0.00018082,2]
[356971523,1743511848338,-968.43,0.00018082,2]
[356971524,1743511848348,-590.49,0.00018082,2]
[356971525,1743511848358,-500.0,0.00018082,2]
[356971526,1743511848368,-1446.65,0.00018082,2]
[356971527,1743511848379,-500.0,0.00018082,2]
[356971528,1743511848390,-3087.28,0.00018082,2]
[356971529,1743511848400,-1474.18,0.00018082,2]
[356971530,1743511848410,-1315.11,0.00018082,2]
[356971531,1743511848420,-500.0,0.00018356,2]
[356971532,1743511848430,-500.0,0.00018356,2]
[356971533,1743511848440,-500.0,0.00018356,2]
[356971534,1743511848450,-500.0,0.00018356,2]
[356971535,1743511848460,-500.0,0.00018356,2]
[356971536,1743511848470,-500.0,0.00018356,2]
[356971537,1743511848480,-500.0,0.00018356,2]
[356971538,1743511848490,-500.0,0.00018356,2]
[356971539,1743511848500,-500.0,0.00018356,2]
[356971540,1743511848510,-500.0,0.00018356,2]
[356971541,1743511848520,-500.0,0.00018356,2]